[Event "*** Titled Tuesday 3|2 Blitz (Early)"]
[Site "Chess.com"]
[Date "2016.12.06"]
[Round "5"]
[White "plouarzel"]
[Black "Ind1anStar"]
[Result "0-1"]
[WhiteElo "2232"]
[BlackElo "2184"]
[TimeControl "180+2"]
[EndTime "12:03:05 PST"]
[Termination "Ind1anStar won by checkmate"]

1. e4 {[%clk 0:03:02]} 1... e6 {[%clk 0:03:00.7]} 2. d4 {[%clk 0:03:02.6]} 2...
d5 {[%clk 0:03:01.5]} 3. Nd2 {[%clk 0:03:04.5]} 3... Nc6 {[%clk 0:03:00.1]} 4.
Ngf3 {[%clk 0:03:04.5]} 4... Nf6 {[%clk 0:03:00.6]} 5. e5 {[%clk 0:03:06.1]}
5... Nd7 {[%clk 0:03:00]} 6. Bd3 {[%clk 0:03:07.7]} 6... f6 {[%clk 0:03:00.9]}
7. exf6 {[%clk 0:03:07.6]} 7... Qxf6 {[%clk 0:03:01.6]} 8. Nf1 {[%clk
0:03:08.6]} 8... Bd6 {[%clk 0:03:02.8]} 9. Ne3 {[%clk 0:03:09.3]} 9... O-O
{[%clk 0:02:47.4]} 10. O-O {[%clk 0:03:10.7]} 10... Qf7 {[%clk 0:02:44.4]} 11.
Bxh7+ {[%clk 0:03:09.2]} 11... Kh8 {[%clk 0:02:44.2]} 12. Bd3 {[%clk 0:03:09.6]}
12... Qh5 {[%clk 0:02:42]} 13. h3 {[%clk 0:03:06.8]} 13... Nf6 {[%clk
0:02:18.5]} 14. c3 {[%clk 0:03:05.2]} 14... Ne4 {[%clk 0:01:59.3]} 15. Bxe4
{[%clk 0:02:58.6]} 15... dxe4 {[%clk 0:02:00.1]} 16. Ne5 {[%clk 0:03:00.2]}
16... Qxd1 {[%clk 0:01:50.9]} 17. Ng6+ {[%clk 0:03:01.4]} 17... Kg8 {[%clk
0:01:50.5]} 18. Rxd1 {[%clk 0:02:57.4]} 18... Rf6 {[%clk 0:01:43.2]} 19. Nh4
{[%clk 0:02:40.1]} 19... g5 {[%clk 0:01:32.6]} 20. Ng4 {[%clk 0:02:41.1]} 20...
Rf5 {[%clk 0:01:07.3]} 21. Nxf5 {[%clk 0:02:39.6]} 21... exf5 {[%clk 0:01:08]}
22. Ne3 {[%clk 0:02:35.8]} 22... Kf7 {[%clk 0:01:06.1]} 23. g4 {[%clk
0:02:35.1]} 23... f4 {[%clk 0:01:06.1]} 24. Nc4 {[%clk 0:02:36.7]} 24... Kf6
{[%clk 0:01:02.8]} 25. Nxd6 {[%clk 0:02:37.6]} 25... cxd6 {[%clk 0:01:03.7]} 26.
b3 {[%clk 0:02:39.1]} 26... Bd7 {[%clk 0:01:03.3]} 27. Bb2 {[%clk 0:02:40.5]}
27... Rh8 {[%clk 0:01:02.2]} 28. Kg2 {[%clk 0:02:41]} 28... Kg6 {[%clk
0:00:59.5]} 29. a3 {[%clk 0:02:41.7]} 29... Ne7 {[%clk 0:00:59.8]} 30. c4 {[%clk
0:02:42.7]} 30... Kf7 {[%clk 0:00:55.2]} 31. d5 {[%clk 0:02:41.6]} 31... Rh7
{[%clk 0:00:54.6]} 32. Re1 {[%clk 0:02:43]} 32... Ng6 {[%clk 0:00:43.2]} 33.
Rxe4 {[%clk 0:02:44.4]} 33... Nh4+ {[%clk 0:00:44]} 34. Kf1 {[%clk 0:02:45.9]}
34... Nf3 {[%clk 0:00:43.6]} 35. Rd1 {[%clk 0:02:14]} 35... Rxh3 {[%clk
0:00:39.8]} 36. c5 {[%clk 0:02:15.3]} 36... Bxg4 {[%clk 0:00:28.1]} 37. cxd6
{[%clk 0:01:55]} 37... Rh1+ {[%clk 0:00:24.4]} 38. Ke2 {[%clk 0:01:48.3]} 38...
Nd4+ {[%clk 0:00:23.1]} 39. Kd2 {[%clk 0:01:43.6]} 39... Rxd1+ {[%clk
0:00:24.4]} 40. Kc3 {[%clk 0:01:42.9]} 40... Nb5+ {[%clk 0:00:26]} 41. Kb4
{[%clk 0:01:40.7]} 41... Nxd6 {[%clk 0:00:27.6]} 42. Re5 {[%clk 0:01:42.3]}
42... b6 {[%clk 0:00:27.2]} 43. a4 {[%clk 0:01:42.4]} 43... a5+ {[%clk
0:00:28.3]} 44. Ka3 {[%clk 0:01:43.9]} 44... Rd3 {[%clk 0:00:28.9]} 45. Ka2
{[%clk 0:01:41.7]} 45... Bd1 {[%clk 0:00:30.2]} 46. Rxg5 {[%clk 0:01:36.4]}
46... Bxb3+ {[%clk 0:00:31.1]} 47. Kb1 {[%clk 0:01:36.3]} 47... Rd1+ {[%clk
0:00:31.7]} 48. Bc1 {[%clk 0:01:37.3]} 48... Ne4 {[%clk 0:00:26.3]} 49. Rf5+
{[%clk 0:01:33.7]} 49... Ke7 {[%clk 0:00:27.2]} 50. Rxf4 {[%clk 0:01:35.6]}
50... Nc3+ {[%clk 0:00:21.7]} 51. Kb2 {[%clk 0:01:33.7]} 51... Nxd5 {[%clk
0:00:22.5]} 52. Re4+ {[%clk 0:01:34.4]} 52... Kd6 {[%clk 0:00:22.8]} 53. Bg5
{[%clk 0:01:23.6]} 53... Rd3 {[%clk 0:00:23.7]} 54. f4 {[%clk 0:01:15.7]} 54...
Rf3 {[%clk 0:00:23.1]} 55. f5 {[%clk 0:01:12.2]} 55... Nb4 {[%clk 0:00:15.1]}
56. Be7+ {[%clk 0:01:06.9]} 56... Kd5 {[%clk 0:00:16.3]} 57. Rh4 {[%clk
0:01:01]} 57... Bc4 {[%clk 0:00:17.6]} 58. Bxb4 {[%clk 0:00:58.4]} 58... axb4
{[%clk 0:00:19.2]} 59. Rh6 {[%clk 0:00:55.6]} 59... Rf2+ {[%clk 0:00:20.4]} 60.
Kc1 {[%clk 0:00:56.5]} 60... Kd4 {[%clk 0:00:22]} 61. Rxb6 {[%clk 0:00:57.5]}
61... Kc3 {[%clk 0:00:23.6]} 62. Kd1 {[%clk 0:00:58.6]} 62... Rf1# {[%clk
0:00:24.8]} 0-1

[Event "*** Titled Tuesday 3|2 Blitz (Early)"]
[Site "Chess.com"]
[Date "2016.12.06"]
[Round "5"]
[White "stuffings101"]
[Black "alturas_pacificas"]
[Result "0-1"]
[WhiteElo "2164"]
[BlackElo "2167"]
[TimeControl "180+2"]
[EndTime "12:03:08 PST"]
[Termination "alturas_pacificas won by resignation"]

1. Nf3 {[%clk 0:03:01.9]} 1... d5 {[%clk 0:02:59.9]} 2. g3 {[%clk 0:03:01.8]}
2... Nf6 {[%clk 0:03:01.2]} 3. Bg2 {[%clk 0:03:02.6]} 3... c6 {[%clk 0:03:02.7]}
4. O-O {[%clk 0:03:03.1]} 4... Bf5 {[%clk 0:03:04]} 5. d3 {[%clk 0:03:02.7]}
5... h6 {[%clk 0:03:05.2]} 6. Nbd2 {[%clk 0:03:01]} 6... e6 {[%clk 0:03:06.1]}
7. b3 {[%clk 0:03:01.6]} 7... Be7 {[%clk 0:03:06.2]} 8. Bb2 {[%clk 0:03:02.2]}
8... O-O {[%clk 0:03:07.3]} 9. Qe1 {[%clk 0:03:01.9]} 9... Bh7 {[%clk
0:03:07.7]} 10. e4 {[%clk 0:03:02.7]} 10... a5 {[%clk 0:03:07.1]} 11. a3 {[%clk
0:03:02.4]} 11... Na6 {[%clk 0:03:02.8]} 12. Qe2 {[%clk 0:03:00.9]} 12... Nc5
{[%clk 0:02:54.1]} 13. Ne5 {[%clk 0:02:59.2]} 13... Nfd7 {[%clk 0:02:52]} 14.
Nxd7 {[%clk 0:02:58.2]} 14... Nxd7 {[%clk 0:02:51.9]} 15. Kh1 {[%clk 0:02:56.5]}
15... Bf6 {[%clk 0:02:45.1]} 16. e5 {[%clk 0:02:56]} 16... Be7 {[%clk
0:02:45.5]} 17. f4 {[%clk 0:02:56.6]} 17... c5 {[%clk 0:02:39.7]} 18. a4 {[%clk
0:02:55.9]} 18... Rc8 {[%clk 0:02:32.5]} 19. g4 {[%clk 0:02:44.4]} 19... Nb6
{[%clk 0:02:20.9]} 20. f5 {[%clk 0:02:39.7]} 20... Bg5 {[%clk 0:02:09.9]} 21.
Bc3 {[%clk 0:02:17.2]} 21... Ra8 {[%clk 0:01:24.9]} 22. Rad1 {[%clk 0:02:14.6]}
22... Qc7 {[%clk 0:01:22.4]} 23. Nf3 {[%clk 0:02:13.4]} 23... Bf4 {[%clk
0:01:01.9]} 24. Nd2 {[%clk 0:01:53.4]} 24... Bg5 {[%clk 0:01:00.5]} 25. Qe1
{[%clk 0:01:45.1]} 25... c4 {[%clk 0:00:54.7]} 26. Nf3 {[%clk 0:01:32.3]} 26...
cxb3 {[%clk 0:00:41.4]} 27. cxb3 {[%clk 0:01:26.4]} 27... Nd7 {[%clk 0:00:36.4]}
28. Nxg5 {[%clk 0:01:21.5]} 28... hxg5 {[%clk 0:00:36.9]} 29. Bd4 {[%clk
0:01:16.9]} 29... Qc2 {[%clk 0:00:33.8]} 30. Qe3 {[%clk 0:01:09.7]} 30... Qxb3
{[%clk 0:00:24.5]} 31. Rb1 {[%clk 0:01:07]} 31... Qxa4 {[%clk 0:00:24.7]} 32.
Rxb7 {[%clk 0:01:05.7]} 32... Rfb8 {[%clk 0:00:24.3]} 33. Rbb1 {[%clk
0:00:52.5]} 33... Rb4 {[%clk 0:00:21.7]} 34. Ra1 {[%clk 0:00:46.3]} 34... Qb5
{[%clk 0:00:21]} 35. h3 {[%clk 0:00:40.9]} 35... a4 {[%clk 0:00:21.4]} 36. f6
{[%clk 0:00:30.9]} 36... gxf6 {[%clk 0:00:20.5]} 37. exf6 {[%clk 0:00:30.7]}
37... Bg6 {[%clk 0:00:22]} 38. Be5 {[%clk 0:00:27.4]} 38... a3 {[%clk
0:00:20.8]} 39. Qxg5 {[%clk 0:00:27.9]} 39... Qc5 {[%clk 0:00:19.5]} 40. d4
{[%clk 0:00:27.8]} 40... Qf8 {[%clk 0:00:20.2]} 41. h4 {[%clk 0:00:28.4]} 41...
Nxe5 {[%clk 0:00:19]} 42. dxe5 {[%clk 0:00:28.6]} 42... Kh7 {[%clk 0:00:18.8]}
43. h5 {[%clk 0:00:29.6]} 43... Bd3 {[%clk 0:00:20.3]} 44. Rf3 {[%clk 0:00:28]}
44... Be4 {[%clk 0:00:21.4]} 45. Rf4 {[%clk 0:00:28]} 45... Bxg2+ {[%clk
0:00:21.1]} 46. Kxg2 {[%clk 0:00:29.1]} 46... Rb2+ {[%clk 0:00:21.4]} 47. Kg3
{[%clk 0:00:29.4]} 47... Rc8 {[%clk 0:00:21.7]} 48. Rxa3 {[%clk 0:00:28.3]}
48... Qxa3+ {[%clk 0:00:20.9]} 49. Rf3 {[%clk 0:00:25.8]} 49... Qf8 {[%clk
0:00:22.5]} 50. Qh4 {[%clk 0:00:20.3]} 50... Rcc2 {[%clk 0:00:21.1]} 51. g5
{[%clk 0:00:20.7]} 51... Rg2+ {[%clk 0:00:20.5]} 52. Kf4 {[%clk 0:00:17.4]}
52... Qb4+ {[%clk 0:00:21.7]} 0-1

[Event "*** Titled Tuesday 3|2 Blitz (Early)"]
[Site "Chess.com"]
[Date "2016.12.06"]
[Round "5"]
[White "avto24"]
[Black "MyleneFarmer"]
[Result "1/2-1/2"]
[WhiteElo "2304"]
[BlackElo "2376"]
[TimeControl "180+2"]
[EndTime "12:04:19 PST"]
[Termination "Game drawn by agreement"]

1. e4 {[%clk 0:03:02]} 1... c5 {[%clk 0:03:00.6]} 2. c3 {[%clk 0:02:58.9]} 2...
Nf6 {[%clk 0:03:00.8]} 3. e5 {[%clk 0:02:59.8]} 3... Nd5 {[%clk 0:03:02.3]} 4.
d4 {[%clk 0:03:01.4]} 4... cxd4 {[%clk 0:03:02.7]} 5. Nf3 {[%clk 0:03:02.3]}
5... d6 {[%clk 0:03:03.9]} 6. cxd4 {[%clk 0:03:03.4]} 6... e6 {[%clk 0:03:05.5]}
7. Bc4 {[%clk 0:03:02.4]} 7... Nc6 {[%clk 0:03:05.6]} 8. O-O {[%clk 0:03:02.7]}
8... Be7 {[%clk 0:03:06.7]} 9. Re1 {[%clk 0:03:03.4]} 9... O-O {[%clk
0:03:05.9]} 10. a3 {[%clk 0:03:03.3]} 10... Bd7 {[%clk 0:03:05.4]} 11. Bxd5
{[%clk 0:02:57.7]} 11... exd5 {[%clk 0:03:05.7]} 12. Nc3 {[%clk 0:02:59.6]}
12... dxe5 {[%clk 0:03:06.9]} 13. Nxd5 {[%clk 0:02:56.2]} 13... Be6 {[%clk
0:02:56]} 14. Nxe7+ {[%clk 0:02:53.8]} 14... Qxe7 {[%clk 0:02:57.5]} 15. Nxe5
{[%clk 0:02:50.3]} 15... Nxe5 {[%clk 0:02:56.7]} 16. Rxe5 {[%clk 0:02:51]} 16...
Rfd8 {[%clk 0:02:55.4]} 17. Be3 {[%clk 0:02:50.2]} 17... Qf6 {[%clk 0:02:50.4]}
18. Qa4 {[%clk 0:02:41.9]} 18... Qg6 {[%clk 0:02:43.3]} 19. h3 {[%clk
0:02:32.7]} 19... b6 {[%clk 0:02:37.3]} 20. Rc1 {[%clk 0:02:30.8]} 20... h6
{[%clk 0:02:24.7]} 21. Kh2 {[%clk 0:02:30.6]} 21... Bd7 {[%clk 0:02:20.5]} 22.
Qa6 {[%clk 0:02:25.6]} 22... Bc6 {[%clk 0:02:18]} 23. f3 {[%clk 0:02:23.2]}
23... Bd5 {[%clk 0:01:47.3]} 24. Rc7 {[%clk 0:02:14.9]} 24... Qd6 {[%clk
0:01:44.5]} 25. Bf4 {[%clk 0:01:31]} 25... Qxc7 {[%clk 0:01:10.4]} 26. Re8+
{[%clk 0:01:31.4]} 26... Rxe8 {[%clk 0:01:11.7]} 27. Bxc7 {[%clk 0:01:33.3]}
27... Re7 {[%clk 0:01:08]} 28. Bd6 {[%clk 0:01:16.8]} 28... Rd7 {[%clk
0:01:03.3]} 29. Be5 {[%clk 0:01:13.6]} 29... f6 {[%clk 0:01:03.9]} 30. Qb5
{[%clk 0:01:13.2]} 30... Rad8 {[%clk 0:01:03.5]} 31. Bf4 {[%clk 0:01:12.2]}
31... Kf7 {[%clk 0:01:03]} 32. h4 {[%clk 0:01:07.5]} 32... g5 {[%clk 0:01:04.1]}
33. Bg3 {[%clk 0:01:06.8]} 33... Kg6 {[%clk 0:01:03.9]} 34. Qd3+ {[%clk
0:01:06.5]} 34... f5 {[%clk 0:01:04.5]} 35. Be5 {[%clk 0:01:05.1]} 35... Be6
{[%clk 0:01:02.5]} 36. g4 {[%clk 0:01:02.9]} 36... Rd5 {[%clk 0:00:53]} 37. h5+
{[%clk 0:01:03.8]} 37... Kf7 {[%clk 0:00:51]} 38. gxf5 {[%clk 0:01:04.7]} 38...
Rxe5 {[%clk 0:00:49.9]} 39. fxe6+ {[%clk 0:01:04.8]} 39... Rxe6 {[%clk
0:00:50.8]} 40. Qh7+ {[%clk 0:01:03.2]} 40... Ke8 {[%clk 0:00:48.1]} 41. Qg8+
{[%clk 0:01:01.6]} 41... Kd7 {[%clk 0:00:45.7]} 42. Qg7+ {[%clk 0:00:59.7]}
42... Ke8 {[%clk 0:00:41.4]} 43. Qxa7 {[%clk 0:00:41]} 43... Rxd4 {[%clk
0:00:41.4]} 44. Kg3 {[%clk 0:00:41.9]} 44... Rf4 {[%clk 0:00:26]} 45. Qb8+
{[%clk 0:00:36.7]} 45... Ke7 {[%clk 0:00:26.9]} 46. Qb7+ {[%clk 0:00:37.6]}
46... Ke8 {[%clk 0:00:20.8]} 47. b4 {[%clk 0:00:34]} 47... Re3 {[%clk
0:00:13.5]} 48. Qc6+ {[%clk 0:00:28.6]} 48... Kf7 {[%clk 0:00:10.8]} 49. Qc7+
{[%clk 0:00:24.4]} 49... Kf8 {[%clk 0:00:10.2]} 50. Qd6+ {[%clk 0:00:22.1]}
50... Kf7 {[%clk 0:00:11.2]} 51. Qg6+ {[%clk 0:00:23.2]} 51... Ke7 {[%clk
0:00:12.1]} 52. Qxb6 {[%clk 0:00:20.9]} 52... Rfxf3+ {[%clk 0:00:11.8]} 53. Kg2
{[%clk 0:00:22.1]} 53... Rg3+ {[%clk 0:00:12.8]} 54. Kh2 {[%clk 0:00:23.2]}
54... Rh3+ {[%clk 0:00:13.9]} 55. Kg2 {[%clk 0:00:24.2]} 55... Rhg3+ {[%clk
0:00:15.4]} 56. Kf2 {[%clk 0:00:24.6]} 56... Rgf3+ {[%clk 0:00:16.3]} 57. Kg2
{[%clk 0:00:23.3]} 57... Rg3+ {[%clk 0:00:09.6]} 58. Kh2 {[%clk 0:00:24.1]}
58... Rh3+ {[%clk 0:00:09.9]} 59. Kg1 {[%clk 0:00:25.4]} 59... Rhg3+ {[%clk
0:00:10.5]} 60. Kf2 {[%clk 0:00:26.3]} 60... Rgf3+ {[%clk 0:00:11.1]} 61. Kg2
{[%clk 0:00:26.8]} 61... Rg3+ {[%clk 0:00:10.7]} 62. Kf1 {[%clk 0:00:28.7]}
62... Rgf3+ {[%clk 0:00:11.3]} 63. Kg1 {[%clk 0:00:29.5]} 63... Rg3+ {[%clk
0:00:08.5]} 1/2-1/2

[Event "*** Titled Tuesday 3|2 Blitz (Early)"]
[Site "Chess.com"]
[Date "2016.12.06"]
[Round "5"]
[White "FearlessKing64"]
[Black "Zhani-Z"]
[Result "0-1"]
[WhiteElo "1989"]
[BlackElo "2282"]
[TimeControl "180+2"]
[EndTime "12:04:20 PST"]
[Termination "Zhani-Z won by checkmate"]

1. e4 {[%clk 0:03:02]} 1... c5 {[%clk 0:02:58.4]} 2. Nf3 {[%clk 0:03:02.4]} 2...
d6 {[%clk 0:02:59.3]} 3. d4 {[%clk 0:03:03.4]} 3... cxd4 {[%clk 0:03:00.3]} 4.
Nxd4 {[%clk 0:03:05.3]} 4... Nf6 {[%clk 0:03:01.7]} 5. f3 {[%clk 0:03:06.5]}
5... Nc6 {[%clk 0:02:50.7]} 6. c4 {[%clk 0:03:06.6]} 6... g6 {[%clk 0:02:51.1]}
7. Be3 {[%clk 0:03:07]} 7... Bg7 {[%clk 0:02:52]} 8. Qd2 {[%clk 0:03:08.4]} 8...
O-O {[%clk 0:02:51.9]} 9. Nc3 {[%clk 0:03:09.3]} 9... Bd7 {[%clk 0:02:52.9]} 10.
Rc1 {[%clk 0:03:09.7]} 10... a5 {[%clk 0:02:52.2]} 11. b3 {[%clk 0:03:10.1]}
11... Nxd4 {[%clk 0:02:51.8]} 12. Bxd4 {[%clk 0:03:10.6]} 12... Bc6 {[%clk
0:02:53.1]} 13. Be2 {[%clk 0:03:10.9]} 13... Nd7 {[%clk 0:02:54]} 14. Be3 {[%clk
0:03:11.5]} 14... Nc5 {[%clk 0:02:53.8]} 15. O-O {[%clk 0:03:11.2]} 15... Qb6
{[%clk 0:02:54.2]} 16. Nb5 {[%clk 0:03:12.2]} 16... Rfc8 {[%clk 0:02:52]} 17.
Rfd1 {[%clk 0:03:10]} 17... Qd8 {[%clk 0:02:42.3]} 18. Kh1 {[%clk 0:03:10.5]}
18... h5 {[%clk 0:02:37.3]} 19. Nd4 {[%clk 0:03:10.4]} 19... Qf8 {[%clk
0:02:34.9]} 20. Bd3 {[%clk 0:03:00.3]} 20... b6 {[%clk 0:02:08.6]} 21. Nxc6
{[%clk 0:02:59.5]} 21... Rxc6 {[%clk 0:02:09.1]} 22. Bc2 {[%clk 0:02:55.7]}
22... Rac8 {[%clk 0:01:55.3]} 23. Rb1 {[%clk 0:02:30.4]} 23... Nd7 {[%clk
0:01:52.3]} 24. Bd3 {[%clk 0:02:25.6]} 24... Nc5 {[%clk 0:01:51.7]} 25. Bc2
{[%clk 0:02:26.1]} 25... Nd7 {[%clk 0:01:52]} 26. Bd3 {[%clk 0:02:27]} 26... Kh7
{[%clk 0:01:50.9]} 27. a3 {[%clk 0:02:22]} 27... Ra8 {[%clk 0:01:27]} 28. f4
{[%clk 0:02:12.6]} 28... Rc7 {[%clk 0:01:21.6]} 29. Qf2 {[%clk 0:02:05.1]} 29...
Qb8 {[%clk 0:01:14.3]} 30. f5 {[%clk 0:01:31.5]} 30... Ne5 {[%clk 0:00:49.3]}
31. Bxb6 {[%clk 0:01:13]} 31... Rb7 {[%clk 0:00:49.6]} 32. Bd4 {[%clk
0:01:03.5]} 32... Rxb3 {[%clk 0:00:50.1]} 33. Bxe5 {[%clk 0:00:52.8]} 33... Bxe5
{[%clk 0:00:33.4]} 34. fxg6+ {[%clk 0:00:52.9]} 34... fxg6 {[%clk 0:00:33.1]}
35. Qf7+ {[%clk 0:00:51.9]} 35... Kh6 {[%clk 0:00:34.3]} 36. Bc2 {[%clk
0:00:45.2]} 36... Rxb1 {[%clk 0:00:33.5]} 37. Rxb1 {[%clk 0:00:45.1]} 37... Qf8
{[%clk 0:00:34.1]} 38. Qf3 {[%clk 0:00:19.4]} 38... Qg8 {[%clk 0:00:23.6]} 39.
Bd3 {[%clk 0:00:19]} 39... Rf8 {[%clk 0:00:23.9]} 40. Qe2 {[%clk 0:00:19.7]}
40... Qe6 {[%clk 0:00:23.8]} 41. g3 {[%clk 0:00:16.1]} 41... Qh3 {[%clk
0:00:21.5]} 42. Rf1 {[%clk 0:00:15.3]} 42... Rxf1+ {[%clk 0:00:18.2]} 43. Qxf1
{[%clk 0:00:15.7]} 43... Qc8 {[%clk 0:00:19.6]} 44. Qc1+ {[%clk 0:00:14.7]}
44... Kg7 {[%clk 0:00:19.5]} 45. Qg5 {[%clk 0:00:14.4]} 45... Bf6 {[%clk
0:00:19.1]} 46. Qd5 {[%clk 0:00:14.9]} 46... Qc7 {[%clk 0:00:16.1]} 47. Kg2
{[%clk 0:00:15.4]} 47... Qb6 {[%clk 0:00:17]} 48. Kf3 {[%clk 0:00:13]} 48... Qb3
{[%clk 0:00:16.1]} 49. h4 {[%clk 0:00:09.7]} 49... Qxa3 {[%clk 0:00:16]} 50. g4
{[%clk 0:00:09]} 50... hxg4+ {[%clk 0:00:16.5]} 51. Kxg4 {[%clk 0:00:10.9]}
51... Qa1 {[%clk 0:00:15.8]} 52. c5 {[%clk 0:00:09.3]} 52... Qg1+ {[%clk
0:00:12.3]} 53. Kf3 {[%clk 0:00:09.2]} 53... Qxc5 {[%clk 0:00:11.4]} 54. Qe6
{[%clk 0:00:06.9]} 54... Qc3 {[%clk 0:00:11.7]} 55. Ke2 {[%clk 0:00:07.3]} 55...
Qe5 {[%clk 0:00:10.2]} 56. Qg4 {[%clk 0:00:07.1]} 56... Qh2+ {[%clk 0:00:10.6]}
57. Kd1 {[%clk 0:00:07.6]} 57... Qxh4 {[%clk 0:00:10]} 58. Qe6 {[%clk
0:00:08.3]} 58... Qh1+ {[%clk 0:00:08.9]} 59. Kc2 {[%clk 0:00:09.4]} 59... Qg2+
{[%clk 0:00:09.6]} 60. Kb3 {[%clk 0:00:10.2]} 60... Qb2+ {[%clk 0:00:10.4]} 61.
Kc4 {[%clk 0:00:10.2]} 61... Qb4+ {[%clk 0:00:10.9]} 62. Kd5 {[%clk 0:00:09.5]}
62... Qc5# {[%clk 0:00:12.4]} 0-1

[Event "*** Titled Tuesday 3|2 Blitz (Early)"]
[Site "Chess.com"]
[Date "2016.12.06"]
[Round "5"]
[White "Holden-Caulfield"]
[Black "Mornar1951"]
[Result "1/2-1/2"]
[WhiteElo "2482"]
[BlackElo "2589"]
[TimeControl "180+2"]
[EndTime "12:04:22 PST"]
[Termination "Game drawn by repetition"]

1. d4 {[%clk 0:03:01.9]} 1... d5 {[%clk 0:03:00.9]} 2. Nf3 {[%clk 0:03:02.6]}
2... Nf6 {[%clk 0:03:01.3]} 3. Bf4 {[%clk 0:03:03.5]} 3... Bf5 {[%clk
0:03:01.7]} 4. e3 {[%clk 0:03:04.6]} 4... e6 {[%clk 0:03:02.9]} 5. Nbd2 {[%clk
0:03:05.2]} 5... Bd6 {[%clk 0:02:57.8]} 6. Bg3 {[%clk 0:03:05.8]} 6... O-O
{[%clk 0:02:56.6]} 7. Be2 {[%clk 0:03:06.9]} 7... Ne4 {[%clk 0:02:55.9]} 8. Nxe4
{[%clk 0:03:07.7]} 8... Bxe4 {[%clk 0:02:57.2]} 9. O-O {[%clk 0:03:08.5]} 9...
c5 {[%clk 0:02:56.8]} 10. c3 {[%clk 0:03:09.5]} 10... Nc6 {[%clk 0:02:53.6]} 11.
Qb3 {[%clk 0:03:08.7]} 11... Bxg3 {[%clk 0:02:49.2]} 12. hxg3 {[%clk 0:03:08.1]}
12... Qb6 {[%clk 0:02:39.1]} 13. Nd2 {[%clk 0:03:01.8]} 13... Bg6 {[%clk
0:02:39.3]} 14. Rfe1 {[%clk 0:02:51.6]} 14... Rfc8 {[%clk 0:02:14.4]} 15. Qxb6
{[%clk 0:02:52.4]} 15... axb6 {[%clk 0:02:16.3]} 16. a3 {[%clk 0:02:53.8]} 16...
Kf8 {[%clk 0:02:10.5]} 17. f3 {[%clk 0:02:50.7]} 17... h5 {[%clk 0:02:10.4]} 18.
Kf2 {[%clk 0:02:51.9]} 18... Ne7 {[%clk 0:01:59.7]} 19. Rh1 {[%clk 0:02:52.7]}
19... Ng8 {[%clk 0:02:00.8]} 20. Rae1 {[%clk 0:02:46.8]} 20... Nf6 {[%clk
0:02:01.9]} 21. Bd1 {[%clk 0:02:42.9]} 21... Ke7 {[%clk 0:01:42.9]} 22. Be2
{[%clk 0:02:41.5]} 22... Rc7 {[%clk 0:01:25.3]} 23. Bb5 {[%clk 0:02:41.5]} 23...
Ra5 {[%clk 0:01:25.1]} 24. Be2 {[%clk 0:02:41]} 24... Ra8 {[%clk 0:01:23.8]} 25.
Bf1 {[%clk 0:02:34]} 25... Rac8 {[%clk 0:01:17.6]} 26. Bb5 {[%clk 0:02:32.2]}
26... Rd8 {[%clk 0:01:17.7]} 27. Rhf1 {[%clk 0:02:22.7]} 27... Ra8 {[%clk
0:01:17.5]} 28. Be2 {[%clk 0:02:21.1]} 28... Ne8 {[%clk 0:01:16.6]} 29. Rh1
{[%clk 0:02:20.6]} 29... Rac8 {[%clk 0:01:09.7]} 30. Bb5 {[%clk 0:02:17.7]}
30... Nf6 {[%clk 0:01:08.3]} 31. Be2 {[%clk 0:02:18.4]} 31... Ra8 {[%clk
0:01:08.9]} 32. Rh4 {[%clk 0:02:15]} 32... Bf5 {[%clk 0:01:04.4]} 33. Rhh1
{[%clk 0:01:52.3]} 33... Rcc8 {[%clk 0:00:58.9]} 34. Rh4 {[%clk 0:01:50]} 34...
Bg6 {[%clk 0:00:59.3]} 35. Rhh1 {[%clk 0:01:50.6]} 35... Rh8 {[%clk 0:00:56]}
36. Nb3 {[%clk 0:01:45.9]} 36... Bc2 {[%clk 0:00:51.1]} 37. Nd2 {[%clk
0:01:46.6]} 37... Bg6 {[%clk 0:00:41.1]} 38. Nb3 {[%clk 0:01:43.9]} 38... Kd6
{[%clk 0:00:41.9]} 39. Nd2 {[%clk 0:01:44.2]} 39... Nd7 {[%clk 0:00:39.7]} 40.
Bb5 {[%clk 0:01:42.1]} 40... Nf6 {[%clk 0:00:35.2]} 41. Be2 {[%clk 0:01:42.8]}
41... c4 {[%clk 0:00:32.4]} 42. e4 {[%clk 0:01:43.7]} 42... Kc6 {[%clk
0:00:21.8]} 43. Bd1 {[%clk 0:01:42.3]} 43... b5 {[%clk 0:00:21.2]} 44. e5 {[%clk
0:01:38.9]} 44... Nd7 {[%clk 0:00:21.1]} 45. f4 {[%clk 0:01:38.3]} 45... Nb6
{[%clk 0:00:21.4]} 46. Nf3 {[%clk 0:01:33.6]} 46... Na4 {[%clk 0:00:20.8]} 47.
Bxa4 {[%clk 0:01:34.6]} 47... bxa4 {[%clk 0:00:22]} 48. Ng5 {[%clk 0:01:36.1]}
48... Rhf8 {[%clk 0:00:19.9]} 49. Nf3 {[%clk 0:01:34.7]} 49... Ra5 {[%clk
0:00:20.1]} 50. Re2 {[%clk 0:01:36.1]} 50... Rb5 {[%clk 0:00:21.2]} 51. Rd2
{[%clk 0:01:34.2]} 51... Kd7 {[%clk 0:00:21.7]} 52. Ng5 {[%clk 0:01:27.5]} 52...
Ke7 {[%clk 0:00:22.3]} 53. Re1 {[%clk 0:01:25.9]} 53... Rc8 {[%clk 0:00:22.9]}
54. Kg1 {[%clk 0:01:25.7]} 54... Rc6 {[%clk 0:00:24.1]} 55. Ree2 {[%clk
0:01:27]} 55... Rcb6 {[%clk 0:00:25.2]} 56. Rf2 {[%clk 0:01:28.3]} 56... Bf5
{[%clk 0:00:25]} 57. Nf3 {[%clk 0:01:28.6]} 57... Be4 {[%clk 0:00:21.7]} 58. Nh4
{[%clk 0:01:27.8]} 58... g6 {[%clk 0:00:20.8]} 59. Nf3 {[%clk 0:01:29]} 59...
Rb3 {[%clk 0:00:16.6]} 60. Ng5 {[%clk 0:01:29.4]} 60... Bf5 {[%clk 0:00:17.8]}
61. Kh2 {[%clk 0:01:30.4]} 61... R6b5 {[%clk 0:00:18.9]} 62. Kg1 {[%clk
0:01:31.6]} 62... Rb6 {[%clk 0:00:20.2]} 63. Kh2 {[%clk 0:01:31.3]} 63... Ra6
{[%clk 0:00:21.6]} 64. Kg1 {[%clk 0:01:32]} 64... Ra8 {[%clk 0:00:22.6]} 65. Kh2
{[%clk 0:01:33]} 65... b5 {[%clk 0:00:23.2]} 66. Kg1 {[%clk 0:01:33.8]} 66...
Rc8 {[%clk 0:00:24.4]} 67. Kh2 {[%clk 0:01:30.8]} 67... Ra8 {[%clk 0:00:25.3]}
68. Kg1 {[%clk 0:01:32]} 68... Ra7 {[%clk 0:00:26.6]} 69. Nh7 {[%clk 0:01:30.8]}
69... Rb7 {[%clk 0:00:25.4]} 70. Nf6 {[%clk 0:01:31.6]} 70... Ra7 {[%clk
0:00:26.4]} 71. Kh2 {[%clk 0:01:32.4]} 71... Rb7 {[%clk 0:00:26.3]} 72. Ng8+
{[%clk 0:01:32.9]} 72... Kf8 {[%clk 0:00:26.8]} 73. Nf6 {[%clk 0:01:34.8]} 73...
Rc7 {[%clk 0:00:26.5]} 74. Kg1 {[%clk 0:01:35.4]} 74... Ke7 {[%clk 0:00:27.6]}
75. Ng8+ {[%clk 0:01:36.3]} 75... Kf8 {[%clk 0:00:28.8]} 76. Nf6 {[%clk
0:01:38.2]} 76... Ke7 {[%clk 0:00:29.8]} 77. Ng8+ {[%clk 0:01:39.5]} 77... Kd8
{[%clk 0:00:30.4]} 78. Nf6 {[%clk 0:01:40.7]} 78... Ke7 {[%clk 0:00:29.5]} 79.
Ng8+ {[%clk 0:01:41.2]} 79... Kf8 {[%clk 0:00:30.6]} 80. Nf6 {[%clk 0:01:42.7]}
80... Rb7 {[%clk 0:00:29.7]} 81. Kh2 {[%clk 0:01:43.4]} 81... Rc7 {[%clk
0:00:28.6]} 82. g4 {[%clk 0:01:43.4]} 82... hxg4 {[%clk 0:00:28.2]} 83. Kg3
{[%clk 0:01:44.8]} 83... Ke7 {[%clk 0:00:29.3]} 84. Ng8+ {[%clk 0:01:45]} 84...
Kf8 {[%clk 0:00:29.8]} 85. Nf6 {[%clk 0:01:46.9]} 85... Ke7 {[%clk 0:00:30.6]}
86. Ng8+ {[%clk 0:01:48.1]} 86... Kf8 {[%clk 0:00:31.9]} 87. Nf6 {[%clk
0:01:50]} 87... Ke7 {[%clk 0:00:27.1]} 88. Ng8+ {[%clk 0:01:49.3]} 88... Kf8
{[%clk 0:00:28]} 89. Nf6 {[%clk 0:01:50.5]} 89... Ke7 {[%clk 0:00:29.3]} 90.
Ng8+ {[%clk 0:01:51.8]} 1/2-1/2